[Event "Titled Tuesday Blitz March 08 Late 2022"]
[White "Moksh Amit Doshi"]
[Black "Yuan, Qingyu"]
[WhiteFideId "25064967"]
[BlackFideId "8609772"]
[WhiteElo "2245"]
[BlackElo "2359"]
[Result "1-0"]
[Round "03"]
[TimeControl "180+1"]
[Date "2022.03.08"]
[WhiteClock "0:00:31"]
[BlackClock "0:00:24"]

1. d4 {[%clk 0:02:59]}  Nf6 {[%clk 0:03:00]} 2. c4 {[%clk 0:02:58]}  g6 {[%clk 0:03:00]} 3. g3 {[%clk 0:02:57]}  c6 {[%clk 0:02:56]} 4. Bg2 {[%clk 0:02:57]}  d5 {[%clk 0:02:57]} 5. Nf3 {[%clk 0:02:56]}  Bg7 {[%clk 0:02:56]} 6. O-O {[%clk 0:02:56]}  O-O {[%clk 0:02:54]} 7. b3 {[%clk 0:02:50]}  dxc4 {[%clk 0:02:53]} 8. bxc4 {[%clk 0:02:51]}  c5 {[%clk 0:02:54]} 9. Bb2 {[%clk 0:02:52]}  Qb6 {[%clk 0:02:53]} 10. Qb3 {[%clk 0:02:53]}  Nc6 {[%clk 0:02:51]} 11. d5 {[%clk 0:02:34]}  Na5 {[%clk 0:02:45]} 12. Qxb6 {[%clk 0:02:34]}  axb6 {[%clk 0:02:46]} 13. Nbd2 {[%clk 0:02:35]}  b5 {[%clk 0:02:39]} 14. cxb5 {[%clk 0:02:28]}  Nxd5 {[%clk 0:02:38]} 15. Bxg7 {[%clk 0:02:27]}  Kxg7 {[%clk 0:02:38]} 16. Rfc1 {[%clk 0:02:22]}  b6 {[%clk 0:02:33]} 17. Ne5 {[%clk 0:02:17]}  e6 {[%clk 0:02:14]} 18. Ndc4 {[%clk 0:02:03]}  Nxc4 {[%clk 0:02:03]} 19. Nxc4 {[%clk 0:02:04]}  Rb8 {[%clk 0:01:56]} 20. e4 {[%clk 0:01:48]}  Nb4 {[%clk 0:01:51]} 21. a3 {[%clk 0:01:42]}  Nd3 {[%clk 0:01:38]} 22. Rd1 {[%clk 0:01:40]}  Rd8 {[%clk 0:01:19]} 23. Bf1 {[%clk 0:01:37]}  Rd4 {[%clk 0:01:19]} 24. Bxd3 {[%clk 0:01:33]}  Bb7 {[%clk 0:01:19]} 25. f3 {[%clk 0:01:30]}  Rbd8 {[%clk 0:01:14]} 26. Be2 {[%clk 0:01:29]}  f5 {[%clk 0:01:14]} 27. exf5 {[%clk 0:01:26]}  gxf5 {[%clk 0:01:13]} 28. Rxd4 {[%clk 0:01:23]}  cxd4 {[%clk 0:01:14]} 29. Rd1 {[%clk 0:01:17]}  Kf6 {[%clk 0:01:13]} 30. f4 {[%clk 0:01:17]}  Be4 {[%clk 0:01:12]} 31. Bd3 {[%clk 0:01:13]}  Bf3 {[%clk 0:01:04]} 32. Rf1 {[%clk 0:01:10]}  Be4 {[%clk 0:01:04]} 33. Rd1 {[%clk 0:01:07]}  Bf3 {[%clk 0:01:05]} 34. Rd2 {[%clk 0:01:06]}  h5 {[%clk 0:00:54]} 35. Nxb6 {[%clk 0:01:06]}  h4 {[%clk 0:00:52]} 36. Kf2 {[%clk 0:01:04]}  Be4 {[%clk 0:00:51]} 37. Nc4 {[%clk 0:00:58]}  hxg3+ {[%clk 0:00:51]} 38. hxg3 {[%clk 0:00:58]}  Bd5 {[%clk 0:00:46]} 39. Ne5 {[%clk 0:00:55]}  Rh8 {[%clk 0:00:46]} 40. Bf1 {[%clk 0:00:54]}  Rh2+ {[%clk 0:00:44]} 41. Ke1 {[%clk 0:00:54]}  Rh1 {[%clk 0:00:44]} 42. b6 {[%clk 0:00:54]}  Bb7 {[%clk 0:00:41]} 43. Rxd4 {[%clk 0:00:37]}  Bg2 {[%clk 0:00:40]} 44. Rd7 {[%clk 0:00:37]}  Rxf1+ {[%clk 0:00:40]} 45. Ke2 {[%clk 0:00:37]}  Bf3+ {[%clk 0:00:33]} 46. Kxf1 {[%clk 0:00:36]}  Be2+ {[%clk 0:00:33]} 47. Ke1 {[%clk 0:00:34]}  Bh5 {[%clk 0:00:32]} 48. b7 {[%clk 0:00:33]}  Bg6 {[%clk 0:00:27]} 49. Nxg6 {[%clk 0:00:32]}  e5 {[%clk 0:00:26]} 50. b8=Q {[%clk 0:00:32]}  exf4 {[%clk 0:00:26]} 51. Qe5+ {[%clk 0:00:32]}  Kg5 {[%clk 0:00:26]} 52. Qxf4+ {[%clk 0:00:31]}  Kf6 {[%clk 0:00:24]} 53. Rd6+ {[%clk 0:00:31]}  Kg7 {[%clk 0:00:24]} 54. Ne5 {[%clk 0:00:30]}  Kg8 {[%clk 0:00:24]} 55. Qg5+ {[%clk 0:00:30]}  Kf8 {[%clk 0:00:24]} 56. Qf6+ {[%clk 0:00:30]}  Ke8 {[%clk 0:00:24]} 57. Rd8# {[%clk 0:00:31]} 1-0


[Site "https://www.chess.com"]

[Event "Titled Tuesday Blitz March 08 Late 2022"]
[White "Molenda, Marcin"]
[Black "Holt, Conrad"]
[WhiteFideId "1173065"]
[BlackFideId "2034387"]
[WhiteElo "2485"]
[BlackElo "2815"]
[Result "0-1"]
[Round "03"]
[TimeControl "180+1"]
[Date "2022.03.09"]
[WhiteClock "0:01:27"]
[BlackClock "0:01:58"]

1. d4 {[%clk 0:02:54]}  d5 {[%clk 0:03:00]} 2. c4 {[%clk 0:02:51]}  c6 {[%clk 0:03:00]} 3. Nf3 {[%clk 0:02:52]}  Nf6 {[%clk 0:03:00]} 4. Qb3 {[%clk 0:02:45]}  dxc4 {[%clk 0:02:59]} 5. Qxc4 {[%clk 0:02:45]}  Bf5 {[%clk 0:02:59]} 6. g3 {[%clk 0:02:44]}  Nbd7 {[%clk 0:02:57]} 7. Bg2 {[%clk 0:02:40]}  e6 {[%clk 0:02:57]} 8. O-O {[%clk 0:02:39]}  Bd6 {[%clk 0:02:57]} 9. Nc3 {[%clk 0:02:30]}  O-O {[%clk 0:02:53]} 10. e3 {[%clk 0:02:27]}  e5 {[%clk 0:02:52]} 11. Rd1 {[%clk 0:02:25]}  e4 {[%clk 0:02:51]} 12. Ne5 {[%clk 0:02:23]}  Bxe5 {[%clk 0:02:48]} 13. dxe5 {[%clk 0:02:23]}  Nxe5 {[%clk 0:02:48]} 14. Qc5 {[%clk 0:02:00]}  Qb8 {[%clk 0:02:25]} 15. b4 {[%clk 0:02:00]}  Bg4 {[%clk 0:02:23]} 16. Rd6 {[%clk 0:01:50]}  Nf3+ {[%clk 0:02:16]} 17. Bxf3 {[%clk 0:01:49]}  Bxf3 {[%clk 0:02:15]} 18. h3 {[%clk 0:01:42]}  b6 {[%clk 0:02:07]} 19. Qe5 {[%clk 0:01:40]}  Ne8 {[%clk 0:02:01]} 20. Nxe4 {[%clk 0:01:26]}  Bxe4 {[%clk 0:02:00]} 21. Bb2 {[%clk 0:01:27]}  Qxd6 {[%clk 0:01:58]} 0-1


[Site "https://www.chess.com"]

[Event "Titled Tuesday Blitz March 08 Late 2022"]
[White "Mortazavi, Ali"]
[Black "Petrova, Irina"]
[WhiteFideId "401323"]
[BlackFideId "14124122"]
[WhiteElo "2339"]
[BlackElo "1993"]
[Result "0-1"]
[Round "03"]
[TimeControl "180+1"]
[Date "2022.03.09"]
[WhiteClock "0:00:21"]
[BlackClock "0:00:05"]

1. Nf3 {[%clk 0:02:58]}  d6 {[%clk 0:02:59]} 2. e4 {[%clk 0:02:58]}  Nf6 {[%clk 0:02:58]} 3. Nc3 {[%clk 0:02:57]}  e5 {[%clk 0:02:58]} 4. d4 {[%clk 0:02:57]}  Nbd7 {[%clk 0:02:59]} 5. Bc4 {[%clk 0:02:57]}  Be7 {[%clk 0:02:58]} 6. a4 {[%clk 0:02:57]}  O-O {[%clk 0:02:58]} 7. Ba2 {[%clk 0:02:56]}  c6 {[%clk 0:02:58]} 8. O-O {[%clk 0:02:57]}  h6 {[%clk 0:02:58]} 9. Re1 {[%clk 0:02:57]}  Re8 {[%clk 0:02:58]} 10. Nh4 {[%clk 0:02:52]}  Bf8 {[%clk 0:02:56]} 11. Ng6 {[%clk 0:02:49]}  exd4 {[%clk 0:02:54]} 12. Qxd4 {[%clk 0:02:49]}  d5 {[%clk 0:02:46]} 13. Nxf8 {[%clk 0:02:49]}  Nxf8 {[%clk 0:02:42]} 14. e5 {[%clk 0:02:44]}  N6d7 {[%clk 0:02:37]} 15. Bf4 {[%clk 0:02:19]}  Ne6 {[%clk 0:02:35]} 16. Qd2 {[%clk 0:02:19]}  Nxf4 {[%clk 0:02:34]} 17. Qxf4 {[%clk 0:02:20]}  Nf8 {[%clk 0:02:34]} 18. Re2 {[%clk 0:02:12]}  Ng6 {[%clk 0:02:33]} 19. Qg3 {[%clk 0:02:13]}  Bf5 {[%clk 0:02:23]} 20. Rae1 {[%clk 0:02:07]}  Qg5 {[%clk 0:02:05]} 21. a5 {[%clk 0:01:54]}  a6 {[%clk 0:02:02]} 22. Na4 {[%clk 0:01:54]}  Nf4 {[%clk 0:01:58]} 23. Re3 {[%clk 0:01:52]}  Bxc2 {[%clk 0:01:49]} 24. Nc5 {[%clk 0:01:52]}  Ne6 {[%clk 0:01:22]} 25. Nxb7 {[%clk 0:01:40]}  Reb8 {[%clk 0:01:17]} 26. Nd6 {[%clk 0:01:35]}  Rxb2 {[%clk 0:01:13]} 27. Qf3 {[%clk 0:01:23]}  Qg6 {[%clk 0:01:06]} 28. Ra3 {[%clk 0:01:07]}  Rab8 {[%clk 0:00:55]} 29. h4 {[%clk 0:01:07]}  Nd4 {[%clk 0:00:45]} 30. Qc3 {[%clk 0:00:58]}  R8b4 {[%clk 0:00:20]} 31. Kh2 {[%clk 0:00:44]}  Qg4 {[%clk 0:00:18]} 32. Qg3 {[%clk 0:00:18]}  Qxg3+ {[%clk 0:00:18]} 33. fxg3 {[%clk 0:00:18]}  Nb5 {[%clk 0:00:18]} 34. Rf3 {[%clk 0:00:16]}  Rxa2 {[%clk 0:00:16]} 35. Rxf7 {[%clk 0:00:16]}  Be4 {[%clk 0:00:15]} 36. e6 {[%clk 0:00:16]}  Rxg2+ {[%clk 0:00:14]} 37. Kh3 {[%clk 0:00:17]}  Rbb2 {[%clk 0:00:12]} 38. e7 {[%clk 0:00:15]}  Nxd6 {[%clk 0:00:11]} 39. Rf8+ {[%clk 0:00:15]}  Kh7 {[%clk 0:00:11]} 40. Kg4 {[%clk 0:00:16]}  h5+ {[%clk 0:00:10]} 41. Kg5 {[%clk 0:00:16]}  Rbf2 {[%clk 0:00:09]} 42. Rxf2 {[%clk 0:00:16]}  Rxf2 {[%clk 0:00:09]} 43. g4 {[%clk 0:00:15]}  hxg4 {[%clk 0:00:08]} 44. Kxg4 {[%clk 0:00:16]}  Rf7 {[%clk 0:00:08]} 45. Rc1 {[%clk 0:00:15]}  Rxe7 {[%clk 0:00:08]} 46. Rxc6 {[%clk 0:00:16]}  Nc4 {[%clk 0:00:08]} 47. Kg5 {[%clk 0:00:17]}  Nxa5 {[%clk 0:00:07]} 48. Rxa6 {[%clk 0:00:17]}  Nc4 {[%clk 0:00:07]} 49. h5 {[%clk 0:00:18]}  Re5+ {[%clk 0:00:06]} 50. Kf4 {[%clk 0:00:18]}  Rf5+ {[%clk 0:00:06]} 51. Kg4 {[%clk 0:00:18]}  Rf6 {[%clk 0:00:05]} 52. h6 {[%clk 0:00:19]}  Rxa6 {[%clk 0:00:05]} 53. hxg7 {[%clk 0:00:20]}  Kxg7 {[%clk 0:00:05]} 54. Kg5 {[%clk 0:00:21]}  Rg6+ {[%clk 0:00:05]} 0-1


[Site "https://www.chess.com"]

[Event "Titled Tuesday Blitz March 08 Late 2022"]
[White "Moussard, Jules"]
[Black "Khabinets, Ivan"]
[WhiteFideId "642908"]
[BlackFideId "14115980"]
[WhiteElo "2557"]
[BlackElo "2114"]
[Result "0-1"]
[Round "03"]
[TimeControl "180+1"]
[Date "2022.03.08"]
[WhiteClock "0:03:03"]
[BlackClock "0:01:51"]

1. Nf3 {[%clk 0:02:59]}  d5 {[%clk 0:02:47]} 2. d4 {[%clk 0:03:00]}  Nf6 {[%clk 0:02:46]} 3. e3 {[%clk 0:03:01]}  e6 {[%clk 0:02:47]} 4. Be2 {[%clk 0:03:01]}  Bd6 {[%clk 0:02:47]} 5. O-O {[%clk 0:03:02]}  O-O {[%clk 0:02:47]} 6. b3 {[%clk 0:03:03]}  c5 {[%clk 0:02:44]} 7. Bb2 {[%clk 0:03:04]}  Nc6 {[%clk 0:02:45]} 8. Nbd2 {[%clk 0:03:04]}  Qe7 {[%clk 0:02:45]} 9. a3 {[%clk 0:03:05]}  e5 {[%clk 0:02:45]} 10. dxe5 {[%clk 0:03:05]}  Nxe5 {[%clk 0:02:46]} 11. Nxe5 {[%clk 0:03:06]}  Bxe5 {[%clk 0:02:46]} 12. Bxe5 {[%clk 0:03:07]}  Qxe5 {[%clk 0:02:47]} 13. Nf3 {[%clk 0:03:08]}  Qe7 {[%clk 0:02:48]} 14. c4 {[%clk 0:03:08]}  Rd8 {[%clk 0:02:47]} 15. Qc2 {[%clk 0:03:09]}  Bg4 {[%clk 0:02:45]} 16. h3 {[%clk 0:03:09]}  Bh5 {[%clk 0:02:46]} 17. Rfd1 {[%clk 0:03:09]}  Bg6 {[%clk 0:02:46]} 18. Qb2 {[%clk 0:03:10]}  Rac8 {[%clk 0:02:45]} 19. Rac1 {[%clk 0:03:11]}  b6 {[%clk 0:02:39]} 20. a4 {[%clk 0:03:11]}  a5 {[%clk 0:02:38]} 21. Ne5 {[%clk 0:03:11]}  Bf5 {[%clk 0:02:32]} 22. cxd5 {[%clk 0:03:11]}  Nxd5 {[%clk 0:02:29]} 23. Nc4 {[%clk 0:03:12]}  Qc7 {[%clk 0:02:25]} 24. Bf3 {[%clk 0:03:11]}  Nb4 {[%clk 0:02:24]} 25. e4 {[%clk 0:03:11]}  Be6 {[%clk 0:02:23]} 26. Qc3 {[%clk 0:03:11]}  Na2 {[%clk 0:02:22]} 27. Qe3 {[%clk 0:03:10]}  Nxc1 {[%clk 0:02:22]} 28. Rxc1 {[%clk 0:03:10]}  Bxc4 {[%clk 0:02:22]} 29. bxc4 {[%clk 0:03:11]}  Qe5 {[%clk 0:02:21]} 30. Rb1 {[%clk 0:03:11]}  Rd6 {[%clk 0:02:19]} 31. g3 {[%clk 0:03:11]}  Rcd8 {[%clk 0:02:18]} 32. Kg2 {[%clk 0:03:12]}  Qd4 {[%clk 0:02:13]} 33. Qf4 {[%clk 0:03:12]}  Rf6 {[%clk 0:02:06]} 34. Qg5 {[%clk 0:03:12]}  Qd3 {[%clk 0:01:52]} 35. Bg4 {[%clk 0:03:03]}  Qxe4+ {[%clk 0:01:51]} 36. Kh2 {[%clk 0:03:03]}  Qxb1 {[%clk 0:01:51]} 0-1


[Site "https://www.chess.com"]

[Event "Titled Tuesday Blitz March 08 Late 2022"]
[White "Munoz, Francisco Javier"]
[Black "Mirzoev, Azer"]
[WhiteFideId "128368"]
[BlackFideId "13400304"]
[WhiteElo "2458"]
[BlackElo "2681"]
[Result "0-1"]
[Round "03"]
[TimeControl "180+1"]
[Date "2022.03.09"]
[WhiteClock "0:00:30"]
[BlackClock "0:00:19"]

1. e4 {[%clk 0:03:00]}  c5 {[%clk 0:03:00]} 2. Nf3 {[%clk 0:02:59]}  e6 {[%clk 0:03:00]} 3. c3 {[%clk 0:02:59]}  d5 {[%clk 0:03:00]} 4. exd5 {[%clk 0:03:00]}  Qxd5 {[%clk 0:03:00]} 5. d4 {[%clk 0:03:00]}  cxd4 {[%clk 0:03:01]} 6. cxd4 {[%clk 0:03:00]}  Nf6 {[%clk 0:03:00]} 7. Nc3 {[%clk 0:03:00]}  Qd6 {[%clk 0:03:01]} 8. Bd3 {[%clk 0:03:01]}  Be7 {[%clk 0:03:01]} 9. O-O {[%clk 0:03:01]}  Nc6 {[%clk 0:03:01]} 10. a3 {[%clk 0:03:01]}  O-O {[%clk 0:03:01]} 11. Bc2 {[%clk 0:03:00]}  b6 {[%clk 0:03:00]} 12. Qd3 {[%clk 0:02:58]}  Bb7 {[%clk 0:03:00]} 13. Bg5 {[%clk 0:02:57]}  g6 {[%clk 0:03:00]} 14. Rad1 {[%clk 0:02:57]}  Rad8 {[%clk 0:03:00]} 15. Bh6 {[%clk 0:02:57]}  Rfe8 {[%clk 0:02:59]} 16. Rfe1 {[%clk 0:02:57]}  Qb8 {[%clk 0:02:52]} 17. h3 {[%clk 0:02:03]}  Bf8 {[%clk 0:02:50]} 18. Qe3 {[%clk 0:01:55]}  Bg7 {[%clk 0:02:47]} 19. Bxg7 {[%clk 0:01:49]}  Kxg7 {[%clk 0:02:47]} 20. Bb3 {[%clk 0:01:49]}  Na5 {[%clk 0:02:44]} 21. Ba2 {[%clk 0:01:17]}  Nd5 {[%clk 0:02:41]} 22. Nxd5 {[%clk 0:01:17]}  Bxd5 {[%clk 0:02:42]} 23. Bxd5 {[%clk 0:01:17]}  Rxd5 {[%clk 0:02:42]} 24. Ne5 {[%clk 0:01:17]}  Qb7 {[%clk 0:02:34]} 25. Rc1 {[%clk 0:01:10]}  Rc8 {[%clk 0:02:25]} 26. Ng4 {[%clk 0:00:46]}  Rf5 {[%clk 0:01:56]} 27. d5 {[%clk 0:00:34]}  Rxc1 {[%clk 0:01:48]} 28. Rxc1 {[%clk 0:00:19]}  exd5 {[%clk 0:01:21]} 29. Qd4+ {[%clk 0:00:06]}  f6 {[%clk 0:01:20]} 30. Ne3 {[%clk 0:00:05]}  Re5 {[%clk 0:01:16]} 31. Rd1 {[%clk 0:00:06]}  Nc6 {[%clk 0:01:11]} 32. Qf4 {[%clk 0:00:06]}  Ne7 {[%clk 0:00:50]} 33. Ng4 {[%clk 0:00:06]}  Re6 {[%clk 0:00:50]} 34. Qh6+ {[%clk 0:00:06]}  Kg8 {[%clk 0:00:50]} 35. Rc1 {[%clk 0:00:06]}  f5 {[%clk 0:00:36]} 36. Ne3 {[%clk 0:00:02]}  d4 {[%clk 0:00:34]} 37. Nf1 {[%clk 0:00:02]}  d3 {[%clk 0:00:20]} 38. Qd2 {[%clk 0:00:02]}  Qd7 {[%clk 0:00:19]} 39. Re1 {[%clk 0:00:02]}  Rxe1 {[%clk 0:00:18]} 40. Qxe1 {[%clk 0:00:03]}  Nc6 {[%clk 0:00:17]} 41. Qd2 {[%clk 0:00:04]}  Ne5 {[%clk 0:00:11]} 42. Ne3 {[%clk 0:00:04]}  Kf7 {[%clk 0:00:10]} 43. Kf1 {[%clk 0:00:05]}  Qc6 {[%clk 0:00:09]} 44. Nd1 {[%clk 0:00:05]}  Qe4 {[%clk 0:00:08]} 45. Qe3 {[%clk 0:00:05]}  Qxe3 {[%clk 0:00:08]} 46. Nxe3 {[%clk 0:00:06]}  Ke6 {[%clk 0:00:08]} 47. Ke1 {[%clk 0:00:06]}  f4 {[%clk 0:00:08]} 48. Kd2 {[%clk 0:00:07]}  fxe3+ {[%clk 0:00:08]} 49. fxe3 {[%clk 0:00:08]}  Nc4+ {[%clk 0:00:08]} 50. Kxd3 {[%clk 0:00:09]}  Nxb2+ {[%clk 0:00:09]} 51. Kc2 {[%clk 0:00:10]}  Na4 {[%clk 0:00:09]} 52. Kb3 {[%clk 0:00:10]}  Nc5+ {[%clk 0:00:10]} 53. Kc4 {[%clk 0:00:11]}  Kd6 {[%clk 0:00:10]} 54. Kb5 {[%clk 0:00:12]}  Kc7 {[%clk 0:00:10]} 55. g4 {[%clk 0:00:13]}  Ne4 {[%clk 0:00:11]} 56. g5 {[%clk 0:00:14]}  Nxg5 {[%clk 0:00:11]} 57. Kc4 {[%clk 0:00:15]}  Nxh3 {[%clk 0:00:11]} 58. Kd5 {[%clk 0:00:15]}  g5 {[%clk 0:00:11]} 59. e4 {[%clk 0:00:16]}  h5 {[%clk 0:00:11]} 60. e5 {[%clk 0:00:17]}  Nf4+ {[%clk 0:00:12]} 61. Ke4 {[%clk 0:00:18]}  h4 {[%clk 0:00:12]} 62. Kf5 {[%clk 0:00:19]}  h3 {[%clk 0:00:12]} 63. Kxg5 {[%clk 0:00:20]}  Ne6+ {[%clk 0:00:13]} 64. Kf6 {[%clk 0:00:20]}  h2 {[%clk 0:00:13]} 65. Kxe6 {[%clk 0:00:21]}  h1=Q {[%clk 0:00:14]} 66. Ke7 {[%clk 0:00:22]}  Qe4 {[%clk 0:00:14]} 67. e6 {[%clk 0:00:23]}  Qe5 {[%clk 0:00:14]} 68. a4 {[%clk 0:00:23]}  Qc5+ {[%clk 0:00:14]} 69. Kf7 {[%clk 0:00:24]}  Kd8 {[%clk 0:00:14]} 70. e7+ {[%clk 0:00:25]}  Qxe7+ {[%clk 0:00:14]} 71. Kg6 {[%clk 0:00:26]}  Qe4+ {[%clk 0:00:14]} 72. Kf6 {[%clk 0:00:26]}  Qxa4 {[%clk 0:00:15]} 73. Kg7 {[%clk 0:00:27]}  b5 {[%clk 0:00:16]} 74. Kh6 {[%clk 0:00:28]}  b4 {[%clk 0:00:17]} 75. Kg7 {[%clk 0:00:29]}  b3 {[%clk 0:00:18]} 76. Kh8 {[%clk 0:00:30]}  b2 {[%clk 0:00:19]} 0-1


[Site "https://www.chess.com"]

[Event "Titled Tuesday Blitz March 08 Late 2022"]
[White "Muradli, Mahammad"]
[Black "Csonka, Balazs"]
[WhiteFideId "13409301"]
[BlackFideId "742910"]
[WhiteElo "2611"]
[BlackElo "2404"]
[Result "1-0"]
[Round "03"]
[TimeControl "180+1"]
[Date "2022.03.08"]
[WhiteClock "0:01:15"]
[BlackClock "0:00:01"]

1. Nf3 {[%clk 0:02:56]}  d5 {[%clk 0:02:58]} 2. g3 {[%clk 0:02:56]}  c5 {[%clk 0:02:57]} 3. Bg2 {[%clk 0:02:56]}  Nc6 {[%clk 0:02:58]} 4. O-O {[%clk 0:02:57]}  Nf6 {[%clk 0:02:57]} 5. d3 {[%clk 0:02:58]}  e5 {[%clk 0:02:51]} 6. e4 {[%clk 0:02:58]}  d4 {[%clk 0:02:50]} 7. Na3 {[%clk 0:02:56]}  Be6 {[%clk 0:02:14]} 8. Nc4 {[%clk 0:02:55]}  Nd7 {[%clk 0:02:11]} 9. a4 {[%clk 0:02:51]}  Be7 {[%clk 0:02:10]} 10. Ne1 {[%clk 0:02:48]}  O-O {[%clk 0:02:09]} 11. f4 {[%clk 0:02:48]}  f6 {[%clk 0:02:09]} 12. f5 {[%clk 0:02:48]}  Bf7 {[%clk 0:02:10]} 13. g4 {[%clk 0:02:49]}  a6 {[%clk 0:02:04]} 14. a5 {[%clk 0:02:11]}  Bxc4 {[%clk 0:02:03]} 15. dxc4 {[%clk 0:02:12]}  Nxa5 {[%clk 0:02:03]} 16. Qe2 {[%clk 0:02:05]}  Nc6 {[%clk 0:01:32]} 17. h4 {[%clk 0:02:03]}  Kh8 {[%clk 0:01:20]} 18. Ra3 {[%clk 0:02:03]}  b5 {[%clk 0:00:53]} 19. Rg3 {[%clk 0:01:59]}  bxc4 {[%clk 0:00:47]} 20. g5 {[%clk 0:01:58]}  Rg8 {[%clk 0:00:24]} 21. g6 {[%clk 0:01:39]}  h6 {[%clk 0:00:24]} 22. Qh5 {[%clk 0:01:39]}  Bf8 {[%clk 0:00:23]} 23. Nf3 {[%clk 0:01:40]}  d3 {[%clk 0:00:15]} 24. c3 {[%clk 0:01:34]}  Qe7 {[%clk 0:00:13]} 25. Rh3 {[%clk 0:01:30]}  Nd4 {[%clk 0:00:10]} 26. cxd4 {[%clk 0:01:21]}  exd4 {[%clk 0:00:11]} 27. Ng5 {[%clk 0:01:21]}  Ne5 {[%clk 0:00:03]} 28. Nf7+ {[%clk 0:01:19]}  Nxf7 {[%clk 0:00:03]} 29. gxf7 {[%clk 0:01:20]}  Rd8 {[%clk 0:00:01]} 30. Rg3 {[%clk 0:01:16]}  Qe5 {[%clk 0:00:01]} 31. Qxh6+ {[%clk 0:01:15]} 1-0


[Site "https://www.chess.com"]

[Event "Titled Tuesday Blitz March 08 Late 2022"]
[White "Osmonbekov, Talaibek"]
[Black "Rorrer, Grayson"]
[WhiteFideId "2017253"]
[BlackFideId "30944996"]
[WhiteElo "2135"]
[BlackElo "2122"]
[Result "1/2-1/2"]
[Round "03"]
[TimeControl "180+1"]
[Date "2022.03.09"]
[WhiteClock "0:00:52"]
[BlackClock "0:01:43"]

1. Nf3 {[%clk 0:02:55]}  Nf6 {[%clk 0:02:59]} 2. d4 {[%clk 0:02:55]}  e6 {[%clk 0:02:58]} 3. Nc3 {[%clk 0:02:54]}  d5 {[%clk 0:02:49]} 4. Bf4 {[%clk 0:02:53]}  Bb4 {[%clk 0:02:47]} 5. a3 {[%clk 0:02:52]}  Bxc3+ {[%clk 0:02:45]} 6. bxc3 {[%clk 0:02:53]}  O-O {[%clk 0:02:45]} 7. e3 {[%clk 0:02:53]}  b6 {[%clk 0:02:45]} 8. Bd3 {[%clk 0:02:51]}  Ba6 {[%clk 0:02:44]} 9. O-O {[%clk 0:02:50]}  Bxd3 {[%clk 0:02:42]} 10. cxd3 {[%clk 0:02:50]}  Nbd7 {[%clk 0:02:42]} 11. c4 {[%clk 0:02:49]}  c5 {[%clk 0:02:41]} 12. Qa4 {[%clk 0:02:36]}  cxd4 {[%clk 0:02:39]} 13. exd4 {[%clk 0:02:34]}  Qe7 {[%clk 0:02:39]} 14. Ne5 {[%clk 0:02:24]}  Nxe5 {[%clk 0:02:33]} 15. Bxe5 {[%clk 0:02:24]}  Nd7 {[%clk 0:02:33]} 16. cxd5 {[%clk 0:02:04]}  Nxe5 {[%clk 0:02:32]} 17. dxe5 {[%clk 0:02:02]}  exd5 {[%clk 0:02:33]} 18. d4 {[%clk 0:02:02]}  f6 {[%clk 0:02:33]} 19. Qc6 {[%clk 0:01:53]}  Rad8 {[%clk 0:02:31]} 20. f4 {[%clk 0:01:53]}  fxe5 {[%clk 0:02:26]} 21. fxe5 {[%clk 0:01:52]}  Rxf1+ {[%clk 0:02:25]} 22. Rxf1 {[%clk 0:01:52]}  Qh4 {[%clk 0:02:26]} 23. Qe6+ {[%clk 0:01:35]}  Kh8 {[%clk 0:02:26]} 24. Qxd5 {[%clk 0:01:33]}  h6 {[%clk 0:02:25]} 25. g3 {[%clk 0:01:17]}  Qe7 {[%clk 0:02:14]} 26. Qe4 {[%clk 0:01:14]}  Qxa3 {[%clk 0:02:12]} 27. d5 {[%clk 0:01:07]}  Qc5+ {[%clk 0:02:12]} 28. Kg2 {[%clk 0:01:08]}  Rxd5 {[%clk 0:01:59]} 29. Rf8+ {[%clk 0:01:01]}  Qxf8 {[%clk 0:01:59]} 30. Qxd5 {[%clk 0:01:02]}  Qe7 {[%clk 0:01:55]} 31. e6 {[%clk 0:00:56]}  Kg8 {[%clk 0:01:50]} 32. Qa8+ {[%clk 0:00:54]}  Qf8 {[%clk 0:01:49]} 33. Qxa7 {[%clk 0:00:52]}  Qf5 {[%clk 0:01:43]} 1/2-1/2


[Site "https://www.chess.com"]

[Event "Titled Tuesday Blitz March 08 Late 2022"]
[White "P., Komal Kishore"]
[Black "Rangel, Daniel"]
[WhiteFideId "5016703"]
[BlackFideId "2124475"]
[WhiteElo "2141"]
[BlackElo "2225"]
[Result "0-1"]
[Round "03"]
[TimeControl "180+1"]
[Date "2022.03.09"]
[WhiteClock "0:00:01"]
[BlackClock "0:01:50"]

1. e4 {[%clk 0:03:00]}  c5 {[%clk 0:02:57]} 2. Nf3 {[%clk 0:02:59]}  d6 {[%clk 0:02:58]} 3. Bb5+ {[%clk 0:02:59]}  Nd7 {[%clk 0:02:56]} 4. O-O {[%clk 0:02:58]}  e6 {[%clk 0:02:57]} 5. c3 {[%clk 0:02:57]}  Nf6 {[%clk 0:02:57]} 6. Qe2 {[%clk 0:02:54]}  Be7 {[%clk 0:02:56]} 7. d4 {[%clk 0:02:54]}  cxd4 {[%clk 0:02:50]} 8. cxd4 {[%clk 0:02:54]}  a6 {[%clk 0:02:51]} 9. Bd3 {[%clk 0:02:51]}  O-O {[%clk 0:02:50]} 10. Nc3 {[%clk 0:02:51]}  b5 {[%clk 0:02:49]} 11. a3 {[%clk 0:02:50]}  Bb7 {[%clk 0:02:49]} 12. Re1 {[%clk 0:02:45]}  Nb6 {[%clk 0:02:45]} 13. b3 {[%clk 0:02:27]}  Rc8 {[%clk 0:02:43]} 14. Bb2 {[%clk 0:02:27]}  Nh5 {[%clk 0:02:41]} 15. Qd2 {[%clk 0:02:18]}  Re8 {[%clk 0:02:32]} 16. a4 {[%clk 0:02:01]}  b4 {[%clk 0:02:31]} 17. Nd1 {[%clk 0:01:58]}  a5 {[%clk 0:02:24]} 18. Rc1 {[%clk 0:01:35]}  Rxc1 {[%clk 0:02:22]} 19. Qxc1 {[%clk 0:01:30]}  g6 {[%clk 0:02:23]} 20. Bb5 {[%clk 0:01:27]}  Rf8 {[%clk 0:02:21]} 21. Nd2 {[%clk 0:00:45]}  Bg5 {[%clk 0:02:18]} 22. g3 {[%clk 0:00:42]}  Qa8 {[%clk 0:02:10]} 23. f4 {[%clk 0:00:40]}  Bf6 {[%clk 0:02:08]} 24. Ne3 {[%clk 0:00:12]}  Bxe4 {[%clk 0:02:03]} 25. Nxe4 {[%clk 0:00:09]}  Qxe4 {[%clk 0:02:04]} 26. Ng4 {[%clk 0:00:07]}  Bxd4+ {[%clk 0:02:04]} 27. Bxd4 {[%clk 0:00:05]}  Qxd4+ {[%clk 0:02:05]} 28. Kg2 {[%clk 0:00:04]}  f5 {[%clk 0:01:51]} 29. Ne3 {[%clk 0:00:03]}  Nd5 {[%clk 0:01:49]} 30. Nxd5 {[%clk 0:00:01]}  Qxd5+ {[%clk 0:01:50]} 0-1


[Site "https://www.chess.com"]